[Event "13th Chennai Open 2022"]
[Site "Chennai"]
[Date "2022.06.20"]
[Round "3.18"]
[White "Parekh Vishrut"]
[Black "Aaryan Varshney"]
[Result "1/2-1/2"]
[ECO "E18"]
[WhiteElo "1774"]
[BlackElo "2308"]
[Annotator "TA"]
[PlyCount "91"]
[EventDate "2022.06.19"]
[EventType "swiss"]
[EventCountry "IND"]
[SourceTitle "playchess.com"]
[Source "ChessBase"]
[SourceQuality "1"]
[TimeControl "5400+30"]

{[%evp 14,91,68,67,65,58,58,50,77,74,83,84,79,37,42,40,43,27,35,40,48,29,47,34,42,31,56,42,34,16,37,35,75,69,130,107,102,111,113,88,94,72,75,48,95,65,67,68,69,68,79,77,74,74,74,74,75,40,51,33,35,22,18,21,34,41,52,22,27,27,37,0,0,0,0,0,4,3,4,8]} 1. d4 {[%emt 0:00:09]} Nf6 {[%emt 0:03:32]} 2. c4 {[%emt 0:00:20]} e6 {[%emt 0:00:04]} 3. Nf3 {[%emt 0:00:21]} b6 {[%emt 0:00:12]} 4. g3 {[%emt 0:01:06]} Bb7 {[%emt 0:00:40]} 5. Bg2 {[%emt 0:00:10]} Be7 {[%emt 0:00:30]} 6. O-O {[%emt 0:00:53]} O-O {[%emt 0:00:11]} 7. d5 {[%emt 0:01:07]} d6 {[%emt 0:22:24]} 8. Nc3 {[%emt 0:01:33]} e5 {[%emt 0:00:16] E18: Queen's Indian: Old Main Line (4 g3 Bb7 5 Bg2 Be7 6 0-0 0-0 7 Nc3).} 9. Nh4 {[%emt 0:02:21]} g6 {[%emt 0:00:41]} 10. e4 {[%emt 0:03:46]} Ne8 {[%emt 0:01:11] White is slightly better.} 11. Nf3 {[%emt 0:09:00]} Nd7 {[%emt 0:01:05] [#]} 12. Bh6 $146 {[%emt 0:00:34]} ({Predecessor:} 12. Ne1 Ng7 13. Nd3 f5 14. Bh6 Rf7 15. f3 Nc5 16. Qe2 Bf6 17. Rab1 a5 18. Nxc5 bxc5 {½-½ (25) Luksza,A (2085)-Nogueiras Santiago,J (2521) Montreal 2003}) 12... Ng7 {[%emt 0:00:10]} 13. Nd2 {[%emt 0:00:50]} Bg5 {[%emt 0:01:37]} 14. Bxg5 {[%emt 0:03:03]} Qxg5 {[%emt 0:02:19]} 15. Qe2 {[%emt 0:16:22]} f5 {[%emt 0:04:35]} 16. exf5 {[%emt 0:01:12]} gxf5 {[%emt 0:02:08]} 17. Rae1 {[%emt 0:01:41]} a6 {[%emt 0:07:52]} 18. f4 {[%emt 0:02:13]} Qh6 {[%emt 0:04:51]} 19. fxe5 {[%emt 0:01:28]} dxe5 {[%emt 0:01:26]} 20. Qe3 {[%emt 0:01:48]} (20. g4 {looks sharper.} Kh8 21. gxf5 Rxf5 22. Nde4) 20... Qd6 {[%emt 0:02:13]} 21. Nf3 {[%emt 0:02:21]} Rae8 {[%emt 0:02:17]} 22. Nh4 {[%emt 0:01:45]} e4 {[%emt 0:07:45] [#]} 23. Bh3 $1 {[%emt 0:01:18][%cal Rh4f5]} Ne5 {[%emt 0:00:41]} (23... Re5 $14) 24. Bxf5 {[%emt 0:04:00]} Nxc4 {[%emt 0:04:24]} 25. Qd4 {[%emt 0:01:18]} b5 {[%emt 0:05:52]} 26. Rxe4 {[%emt 0:06:15] Dancing on a razor blade.} Qb6 {[%emt 0:05:11]} 27. Qxb6 {[%emt 0:02:41]} Nxb6 {[%emt 0:00:51]} 28. Rd4 {[%emt 0:02:38]} Rd8 {[%emt 0:02:51]} (28... Nxf5 $14 29. Nxf5 Bc8) 29. Rdf4 {[%emt 0:04:00][%cal Of5h7] 0x0.00207b3c2896dp-1022s more active pieces.} Kh8 {[%emt 0:04:10]} 30. Be6 {[%emt 0:02:03]} Rxf4 {[%emt 0:01:36]} 31. Rxf4 {[%emt 0:00:06]} Nxe6 {[%emt 0:00:38]} 32. dxe6 {[%emt 0:00:03]} Re8 {[%emt 0:00:15]} 33. Rf7 {[%emt 0:01:07] Black must now prevent Nf5.} b4 {[%emt 0:01:13] [#]} 34. Ne2 {[%emt 0:07:21] Hoping for Nf5.} ({Weaker is} 34. Rxc7 bxc3 35. bxc3 (35. Rxb7 $2 c2 $19) 35... Be4 $17) 34... Bd5 {[%emt 0:00:29]} 35. Rxc7 {[%emt 0:01:47] Strongly threatening Nf4.} (35. Nf4 {feels hotter.} Bxe6 36. Nxe6 Rxe6 37. Rxc7 Re2 38. Rc6) 35... Bxe6 {[%emt 0:00:32]} 36. Rb7 {[%emt 0:02:40]} Bxa2 {[%emt 0:01:19][%cal Oa6a5]} 37. Rxb6 {[%emt 0:00:19]} Rxe2 {[%emt 0:00:09]} 38. Rxb4 $14 {[%emt 0:00:06][%mdl 4096] Endgame KRB-KRN} Bd5 {[%emt 0:00:34]} 39. Nf5 {[%emt 0:00:54] Rb8+ is the strong threat.} h5 {[%emt 0:00:39]} 40. Nh4 {[%emt 0:01:21] Against Rg2+} Kh7 {[%emt 0:02:34]} 41. Rb6 {[%emt 0:00:44]} Bc4 {[%emt 0:00:48]} 42. Ng6 {[%emt 0:01:45]} Bb5 {[%emt 0:00:32] The position is equal.} 43. Nf4 {[%emt 0:01:33][%csl LRe2,LRh5]} Rxb2 {[%emt 0:00:08]} 44. Nxh5 {[%emt 0:00:43]} Rb1+ {[%emt 0:01:39]} 45. Kf2 {[%emt 0:00:04]} Rb2+ {[%emt 0:00:05]} 46. Ke3 {[%emt 0:14:41] Weighted Error Value: White=0.11 (very precise) /Black=0.07 (flawless)} 1/2-1/2

[Event "13th Chennai Open 2022"]
[Site "Chennai"]
[Date "2022.06.21"]
[Round "4.1"]
[White "Savchenko, Boris"]
[Black "Hirthickkesh PR"]
[Result "1-0"]
[ECO "E20"]
[WhiteElo "2524"]
[BlackElo "2232"]
[Annotator "TA"]
[PlyCount "83"]
[EventDate "2022.06.19"]
[EventType "swiss"]
[EventCountry "IND"]
[SourceTitle "playchess.com"]
[Source "ChessBase"]
[SourceQuality "1"]
[TimeControl "5400+30"]

{[%evp 9,83,0,16,0,31,29,44,33,33,0,0,12,102,102,87,83,89,76,74,53,61,69,61,55,51,56,59,51,55,55,57,73,72,60,171,180,201,60,62,68,116,109,328,328,408,406,392,360,370,299,338,326,353,368,452,450,619,241,320,289,289,239,666,662,789,768,5085,4718,2071,474,460,466,464,450,415,422]} 1. d4 {[%emt 0:00:22]} Nf6 {[%emt 0:00:09]} 2. c4 {[%emt 0:00:18]} e6 {[%emt 0:00:08]} 3. Nc3 {[%emt 0:00:12]} Bb4 {[%emt 0:00:44]} 4. g3 {[%emt 0:05:37]} O-O {[%emt 0:02:08]} 5. Bg2 {[%emt 0:00:41]} d6 {[%emt 0:03:55]} 6. e3 {[%emt 0:10:04] [#] E20: Nimzo-Indian: 4 g3 and 4 f3.} e5 $146 {[%emt 0:09:43]} ({Predecessor:} 6... Bxc3+ 7. bxc3 Nbd7 8. Nf3 {½-½ (8) Levin,F (2503)-Maiorov,N (2537) Cesenatico 2015}) 7. Nge2 {[%emt 0:00:17]} e4 {[%emt 0:10:01]} 8. O-O {[%emt 0:00:20] White is slightly better.} Re8 {[%emt 0:01:45]} 9. Nd5 {[%emt 0:00:44]} Nxd5 {[%emt 0:02:03]} 10. cxd5 {[%emt 0:00:08]} Bg4 {[%emt 0:15:20]} (10... Ba5 $11 {keeps the balance.}) 11. h3 $1 $16 {[%emt 0:01:23]} Bxe2 {[%emt 0:01:45]} 12. Qxe2 {[%emt 0:00:06]} Ba5 {[%emt 0:00:40]} 13. b4 {[%emt 0:04:53]} Bb6 {[%emt 0:00:04]} 14. Bd2 {[%emt 0:09:45]} a5 {[%emt 0:10:16]} 15. a4 {[%emt 0:07:20]} axb4 {[%emt 0:03:31]} 16. Qb5 $36 {[%emt 0:01:41][%mdl 2048] Strongly threatening a5. White fights for an advantage.} c5 $1 {[%emt 0:22:35]} 17. dxc6 {[%emt 0:00:53]} Nxc6 {[%emt 0:00:58]} 18. Bxb4 {[%emt 0:00:11][%cal Oa4a5]} Nxb4 {[%emt 0:03:04]} 19. Qxb4 {[%emt 0:00:09]} d5 {[%emt 0:02:05]} 20. Rfc1 {[%emt 0:06:39]} h5 {[%emt 0:03:29]} 21. h4 {[%emt 0:02:58]} g5 {[%emt 0:03:12]} (21... Re7 $14) 22. hxg5 $18 {[%emt 0:00:21]} Re6 {[%emt 0:00:24]} 23. a5 {[%emt 0:02:48]} ({White should play} 23. Bh3 $1 $18 {[%cal Rh3e6]} Ba5 24. Qxb7) 23... Bxa5 $14 {[%emt 0:01:45]} 24. Qb5 {[%emt 0:05:30] White is more active.} b6 {[%emt 0:00:11] [#]} (24... Rb6 $14 25. Qe2 Rg6) 25. Rc6 $1 $16 {[%emt 0:00:22]} (25. Bh3 Rg6 $14) 25... Rxc6 $2 {[%emt 0:02:30] Black cannot hold the game after this.} (25... Qxg5 $16 26. Rxe6 fxe6) 26. Qxc6 $18 {[%emt 0:00:07]} Rc8 {[%emt 0:00:13]} 27. Qh6 {[%emt 0:00:23] Hoping for Bh3.} Qf8 {[%emt 0:00:29]} 28. Qxh5 {[%emt 0:00:12] g6 is the strong threat.} Qg7 {[%emt 0:00:20] Against g6} 29. g6 {[%emt 0:01:51]} Qxg6 {[%emt 0:00:11]} 30. Qxd5 {[%emt 0:00:07]} Re8 {[%emt 0:00:08]} 31. Rc1 {[%emt 0:00:34] Black must now prevent Rc6.} Kg7 {[%emt 0:01:24]} 32. Rc6 {[%emt 0:04:38]} Qg4 {[%emt 0:00:07] [#]} 33. Qb3 {[%emt 0:09:55]} (33. Bh3 $1 {[%mdl 512]} Qxh3 34. Qg5+ Kh7 35. Rf6) 33... Be1 {[%emt 0:00:40] ( -> ...Qe2)} 34. Qb2 {[%emt 0:01:05] Against Qe2} (34. Qxb6 Qe2 35. Rf6 Re6 36. Rxe6 Bxf2+ 37. Kh2 Qg4 $11) 34... Qf5 {[%emt 0:00:58]} 35. d5+ {[%emt 0:06:21]} f6 $2 {[%emt 0:00:07]} (35... Qe5 36. Qa2 (36. Rxb6 Ba5 $18) (36. Qxb6 Rb8 $14) 36... Ba5) 36. d6 {[%emt 0:04:27]} Re5 {[%emt 0:00:39]} 37. Rc1 {[%emt 0:01:27]} Ba5 {[%emt 0:00:47]} 38. Rc7+ {[%emt 0:01:38]} Kh6 {[%emt 0:00:01]} 39. Re7 {[%emt 0:01:17]} (39. d7 $142 Rd5 40. Qa3 (40. Bxe4 $2 Rd1+ 41. Kg2 Qxe4+ 42. f3 Qe6 $19) 40... Rd1+ 41. Kh2 Rxd7 42. Qf8+ Kg5 43. Qg8+ Qg6 44. Qxg6+ Kxg6 45. Rxd7) 39... Rxe7 {[%emt 0:00:55]} 40. dxe7 {[%emt 0:00:06]} Qe6 {[%emt 0:00:02]} 41. e8=Q {[%emt 0:00:10]} Qxe8 {[%emt 0:00:05]} 42. Qxf6+ {[%emt 0:00:06] Weighted Error Value: White=0.48/Black=0.44} 1-0

[Event "13th Chennai Open 2022"]
[Site "Chennai"]
[Date "2022.06.21"]
[Round "4.2"]
[White "Ziatdinov, Raset"]
[Black "Stupak, Kirill"]
[Result "0-1"]
[ECO "C15"]
[WhiteElo "2224"]
[BlackElo "2440"]
[Annotator "TA"]
[PlyCount "78"]
[EventDate "2022.06.19"]
[EventType "swiss"]
[EventCountry "IND"]
[SourceTitle "playchess.com"]
[Source "ChessBase"]
[SourceQuality "1"]
[TimeControl "5400+30"]

{[%evp 15,78,0,32,0,0,-22,-16,-84,-19,-41,-37,-39,-39,-55,-54,-47,-43,-76,-72,-72,-55,-49,-49,-69,-62,-85,-32,-104,-66,-84,-20,-23,-23,-83,7,-62,-85,-200,-181,-236,-221,-296,-281,-281,-214,-306,-302,-285,-302,-307,-266,-429,-429,-459,-449,-605,-395,-939,-212,-205,229,-631,-379,-405,-267]} 1. e4 {[%emt 0:07:44]} e6 {[%emt 0:00:07]} 2. d4 {[%emt 0:00:06]} d5 {[%emt 0:00:02]} 3. Nc3 {[%emt 0:00:05]} Bb4 {[%emt 0:00:02]} 4. a3 {[%emt 0:00:18]} Bxc3+ {[%emt 0:00:06]} 5. bxc3 {[%emt 0:00:03]} dxe4 {[%emt 0:00:05]} 6. Qg4 {[%emt 0:00:06]} Nf6 {[%emt 1:33:08]} 7. Qxg7 {[%emt 0:00:07]} Rg8 {[%emt 0:00:00]} 8. Qh6 {[%emt 1:26:01]} Nbd7 {[%emt 0:00:00]} 9. h3 {[%emt 0:00:00] C15: French: 3 Nc3 Bb4: Unusual White 4th moves.} b6 {[%emt 0:00:00]} 10. g4 {[%emt 0:01:00]} Bb7 {[%emt 0:00:00] [#]} 11. Be3 $146 {[%emt 0:00:30]} (11. Ne2 $11 {keeps the balance.}) ({Predecessor:} 11. Bg2 Qe7 12. g5 Qf8 13. Qxf8+ Nxf8 14. h4 h6 15. f4 O-O-O 16. Ne2 Nh5 17. Be3 {1-0 (46) Vorotnikov,V (2475)-Uhlmann,W (2505) Leningrad 1984}) 11... Rg6 {[%emt 0:00:00]} (11... Qe7 $17) 12. Qh4 $11 {[%emt 0:00:00]} Nd5 {[%emt 0:00:00]} 13. Qxd8+ {[%emt 0:00:00]} Rxd8 {[%emt 0:00:00]} 14. c4 {[%emt 0:00:00]} Nxe3 {[%emt 0:00:00]} 15. fxe3 {[%emt 0:00:00]} c5 {[%emt 0:00:00]} 16. Ne2 {[%emt 0:00:00]} cxd4 {[%emt 0:00:00]} 17. exd4 {[%emt 0:00:00]} Rc8 {[%emt 0:00:00]} 18. Nf4 {[%emt 0:00:00]} Rg5 {[%emt 0:00:00]} 19. Ng2 {[%emt 0:00:00]} f5 {[%emt 0:00:00] Black is more active.} 20. Be2 {[%emt 0:00:00]} Ba6 {[%emt 0:00:00]} (20... e5 $17 {Strongly threatening ...f4.} 21. dxe5 Nxe5) 21. Nf4 {[%emt 0:00:00]} ({White should play} 21. Rf1 $1 $15) 21... Nf8 {[%emt 0:00:00]} 22. h4 {[%emt 0:05:30]} Rg8 $36 {[%emt 0:00:00][%mdl 2048] Black fights for an advantage.} (22... Rg7 $17 23. gxf5 exf5) 23. gxf5 {[%emt 0:00:00]} exf5 {[%emt 0:00:00]} 24. Nd5 {[%emt 0:00:00] [#]} (24. Rf1 $1 $11 {remains equal.}) 24... Nd7 {[%emt 0:00:00]} (24... Rg7 $1 $17) 25. Bh5+ {[%emt 0:00:00]} (25. Rf1 $11) 25... Kd8 $1 $15 {[%emt 0:00:00]} 26. c5 {[%emt 0:00:00]} ({Avoid the trap} 26. Bf7 $2 Rg7 27. Be6 Bxc4 $19) (26. Be2 $17 {was necessary.}) 26... Bb7 $19 {[%emt 0:00:00]} ({Not} 26... bxc5 27. O-O-O) 27. Nf4 {[%emt 0:00:00]} (27. Ne3 $142) 27... bxc5 {[%emt 0:00:00]} 28. O-O-O {[%emt 0:00:00]} Ke7 {[%emt 0:11:00]} 29. Rhf1 {[%emt 0:03:30]} Nf6 {[%emt 0:00:30]} 30. d5 {[%emt 0:00:30]} (30. Be2 $142) 30... Nxh5 {[%emt 0:00:00]} 31. Nxh5 {[%emt 0:00:00]} Rcf8 {[%emt 0:01:00]} 32. Nf4 {[%emt 0:01:00]} Rf6 {[%emt 0:00:00]} 33. c4 $2 {[%emt 0:00:30] [#]} (33. Rg1 Rg4 34. Nh5 Rxg1 35. Rxg1) 33... Kd6 {[%emt 0:00:00]} 34. Ne6 {[%emt 0:00:00]} Rg4 {[%emt 0:00:00] ...Ba6 is the strong threat.} 35. Nf4 {[%emt 0:00:00]} h6 {[%emt 0:00:00]} 36. Rg1 $2 {[%emt 0:00:00]} (36. Kd2) 36... Rxg1 $2 {[%emt 0:00:00]} (36... Rxf4 37. Kd2 Ba6) 37. Rxg1 {[%emt 0:00:00]} Ba6 $4 {[%emt 0:00:00][%mdl 8192]} (37... e3 $19 {avoids the disaster. White must now prevent ...Ke5.} 38. Rg7 Ke5) 38. Rg7 $4 {[%emt 0:00:00][%mdl 8192]} (38. Nh5 $18 Ke5 39. Nxf6 Kxf6 40. d6) 38... Ke5 {[%emt 0:00:00]} 39. Nh5 {[%emt 0:00:00]} Rb6 {[%emt 0:00:00] Weighted Error Value: White=0.70/Black=0.69} 0-1

[Event "13th Chennai Open 2022"]
[Site "Chennai"]
[Date "2022.06.21"]
[Round "4.3"]
[White "Ajay Karthikeyan"]
[Black "Murali Krishnan B T"]
[Result "1/2-1/2"]
[ECO "C10"]
[WhiteElo "2436"]
[BlackElo "2208"]
[Annotator "TA"]
[PlyCount "71"]
[EventDate "2022.06.19"]
[EventType "swiss"]
[EventCountry "IND"]
[SourceTitle "playchess.com"]
[Source "ChessBase"]
[SourceQuality "1"]
[TimeControl "5400+30"]

{[%evp 20,71,34,40,44,30,36,34,36,19,24,28,28,32,31,23,30,17,18,21,30,24,50,51,66,56,89,59,70,42,49,39,29,3,114,21,68,71,78,79,74,-215,-201,-208,-193,-185,-186,-188,0,0,0,-167,0,0]} 1. e4 {[%emt 0:00:07]} e6 {[%emt 0:00:42]} 2. d4 {[%emt 0:00:05]} d5 {[%emt 0:00:04]} 3. Nc3 {[%emt 0:00:04]} dxe4 {[%emt 0:00:12]} 4. Nxe4 {[%emt 0:00:05]} Bd7 {[%emt 0:00:04]} 5. Nf3 {[%emt 0:00:56]} Bc6 {[%emt 0:00:08]} 6. Bd3 {[%emt 0:00:03]} Nd7 {[%emt 0:00:08]} 7. c3 {[%emt 0:00:04]} Be7 {[%emt 0:01:51]} 8. O-O {[%emt 0:01:15]} Ngf6 {[%emt 0:00:04]} 9. Nxf6+ {[%emt 0:00:05]} Bxf6 {[%emt 0:00:57]} 10. Re1 {[%emt 0:02:58]} O-O {[%emt 0:01:06]} 11. Bf4 {[%emt 0:00:56]} g6 {[%emt 0:08:34] C10: French with 3 Nc3: Unusual Black 3rd moves and 3...dxe4.} 12. Qe2 {[%emt 0:10:46]} Bxf3 {[%emt 0:05:28]} 13. Qxf3 {[%emt 0:00:27]} c6 {[%emt 0:00:05] [#] White is slightly better.} 14. Bc4 $146 {[%emt 0:17:02]} ({Predecessor:} 14. Rad1 Re8 15. Bc2 Qb6 16. Re2 Bg7 17. Rde1 a5 18. Kh1 Qb5 19. a4 Qd5 {½-½ (19) Ferrer Roig,J (2130)-Tscharotschkin,M (2290) Benidorm 2007}) 14... Bg5 {[%emt 0:03:06]} 15. Rad1 {[%emt 0:11:42]} Qf6 {[%emt 0:09:49]} 16. Bxg5 {[%emt 0:00:49]} Qxg5 {[%emt 0:00:06]} 17. g3 {[%emt 0:00:43]} Rad8 {[%emt 0:02:29]} 18. h4 {[%emt 0:01:03]} Qf5 {[%emt 0:03:57]} 19. Qe3 {[%emt 0:09:40]} Nf6 {[%emt 0:07:51]} 20. Kg2 {[%emt 0:08:15]} Kg7 {[%emt 0:01:18]} 21. Qc1 {[%emt 0:03:09]} Nd7 {[%emt 0:03:25] Against Re5} 22. Rd3 {[%emt 0:06:42]} c5 {[%emt 0:13:54]} 23. Rf3 {[%emt 0:04:10]} Qh5 {[%emt 0:00:38]} 24. Qf4 {[%emt 0:09:25]} cxd4 $1 {[%emt 0:08:27]} 25. Qxd4+ {[%emt 0:00:33]} Kg8 {[%emt 0:00:23]} 26. Qf4 {[%emt 0:02:32] And now b4 would win.} Qc5 {[%emt 0:06:46] [#]} (26... Qf5 $1 $11 {remains equal.}) 27. Bb3 {[%emt 0:01:13]} (27. b4 $1 $16 {[%cal Rb4c5]} Qc6 28. h5) 27... Kg7 {[%emt 0:09:04]} (27... a6 $11) 28. h5 $14 {[%emt 0:00:32]} g5 {[%emt 0:02:30] [#]} 29. Qe4 {[%emt 0:05:06] Black must now prevent Bc2. White is more active.} h6 {[%emt 0:03:28]} (29... Qc6 $2 30. h6+ Kh8 31. Qg4 $18) 30. Rxf7+ $2 {[%emt 0:04:18][%mdl 8192]} Rxf7 $19 {[%emt 0:00:28]} 31. Qg6+ {[%emt 0:00:02]} Kf8 {[%emt 0:01:24]} 32. Qxh6+ {[%emt 0:00:08]} Kg8 {[%emt 0:00:40]} 33. Qg6+ {[%emt 0:01:25]} Kf8 {[%emt 0:00:05]} 34. Qh6+ {[%emt 0:00:28]} Kg8 {[%emt 0:00:08]} 35. Qg6+ {[%emt 0:00:38]} Kf8 $2 {[%emt 0:00:07]} ({Black should play} 35... Rg7 $19 36. Qxe6+ Kh8) 36. Qh6+ {[%emt 0:00:25] Weighted Error Value: White=0.28 (precise) /Black=0.28 (precise)} 1/2-1/2

[Event "13th Chennai Open 2022"]
[Site "Chennai"]
[Date "2022.06.21"]
[Round "4.4"]
[White "Luong Phuong Hanh"]
[Black "Nitin, S.."]
[Result "0-1"]
[ECO "A04"]
[WhiteElo "2169"]
[BlackElo "2399"]
[Annotator "TA"]
[PlyCount "106"]
[EventDate "2022.06.19"]
[EventType "swiss"]
[EventCountry "IND"]
[SourceTitle "playchess.com"]
[Source "ChessBase"]
[SourceQuality "1"]
[TimeControl "5400+30"]

{[%evp 15,106,0,0,-12,10,-30,9,-29,-22,-39,0,0,0,0,0,0,0,-17,20,0,70,56,126,130,134,143,124,52,33,-29,0,-80,-81,-61,-47,-266,-265,-302,-303,-292,-269,-281,-268,-264,-270,-587,-602,-575,-595,-577,-597,-633,-625,-594,-600,-681,-659,-707,-668,-1066,-763,-1147,-1144,-1120,-1101,-1077,-1083,-1702,-1702,-3593,-3193,-2842,-2832,-2864,-2036,-2368,-1837,-2507,-2486,-2151,-827,-29963,-6885,-29965,-29960,-29966,-29965,-29969,-29961,-29977,-29978,-29973,-29964]} 1. d4 {[%emt 0:00:05]} g6 {[%emt 0:00:33]} 2. Nf3 {[%emt 0:00:10]} Bg7 {[%emt 0:00:12]} 3. g3 {[%emt 0:00:06]} c5 {[%emt 0:00:47]} 4. Bg2 {[%emt 0:00:26]} cxd4 {[%emt 0:00:58]} 5. Nxd4 {[%emt 0:00:08]} Nc6 {[%emt 0:00:17]} 6. Nb3 {[%emt 0:00:31]} Nf6 {[%emt 0:01:33]} 7. Nc3 {[%emt 0:00:32]} O-O {[%emt 0:00:59]} 8. O-O {[%emt 0:00:09]} d6 {[%emt 0:02:41]} 9. Bf4 {[%emt 0:03:32] A04: Unusual lines after 1 Nf3 and King's Indian Attack.} h6 {[%emt 0:05:36]} 10. h3 {[%emt 0:06:24] [#]} a5 $146 {[%emt 0:04:09][%cal Ba7a5,Ba5a4,Ba4a3][%mdl 32]} ({Predecessor:} 10... Kh7 11. Qd2 Be6 12. Kh2 Rc8 13. Rab1 a6 14. Rfd1 b5 15. Ne4 Nh5 16. Be3 Qc7 {0-1 (32) Zhelesny,S (2266)-Taimanov,M (2425) Saint Vincent 2002}) 11. Be3 {[%emt 0:05:03] The position is equal.} a4 {[%emt 0:10:25]} 12. Nd4 {[%emt 0:01:19]} a3 {[%emt 0:03:34]} 13. b3 {[%emt 0:03:57]} ({Don't go for} 13. Bxc6 $2 bxc6 14. b3 (14. Nxc6 $2 Qc7 $19) 14... Bxh3 $19) 13... Nxd4 {[%emt 0:20:01]} 14. Bxd4 {[%emt 0:00:24]} ({Reject} 14. Qxd4 Ng4 $1 15. Qd2 Nxe3 16. Qxe3 Qa5 $17) 14... e5 {[%emt 0:00:16]} 15. Be3 {[%emt 0:00:11]} Be6 {[%emt 0:00:06]} 16. Qd2 {[%emt 0:08:14]} Qc8 {[%emt 0:13:03]} 17. Kh2 {[%emt 0:09:58]} Kh7 {[%emt 0:02:05]} (17... d5 $11 18. Nxd5 Nxd5 19. Bxd5 Bxd5 20. Qxd5 Qxc2) 18. Na4 {[%emt 0:03:17]} d5 {[%emt 0:02:03]} (18... Rxa4 $1 $14 19. bxa4 d5) 19. Nb6 $1 $16 {[%emt 0:01:03][%csl LRa8,LRc8,LRd5]} Qd8 {[%emt 0:00:53] [#] Threatens to win with ...Ra6.} 20. Bc5 $1 {[%emt 0:00:47]} Rb8 {[%emt 0:07:43][%cal Ba8b8,Bb8c8,Bc8c2,Bc2e2][%mdl 32]} 21. Bxf8 {[%emt 0:06:42]} (21. Rad1 $16) 21... Bxf8 $14 {[%emt 0:00:48] [#]} 22. Na4 {[%emt 0:09:21]} (22. Nxd5 $1 $14 Bxd5 23. Rfd1) 22... Qc7 {[%emt 0:05:37] ...b5 is the strong threat.} (22... b5 $5 23. Nc3 Qa5 $11) 23. Qc3 {[%emt 0:09:35]} (23. e4 $1 $11) 23... Qxc3 $17 {[%emt 0:01:09] Black is more active.} 24. Nxc3 {[%emt 0:00:04]} Rc8 {[%emt 0:00:06]} 25. Nd1 {[%emt 0:10:14] Loses the game.} ({White must play} 25. Nb5 $15) 25... Rxc2 $19 {[%emt 0:00:19]} 26. Ne3 {[%emt 0:00:50]} Rxe2 {[%emt 0:00:51]} 27. Kg1 {[%emt 0:00:46]} e4 {[%emt 0:05:39]} 28. Rfe1 {[%emt 0:02:56]} Rb2 {[%emt 0:12:07]} 29. Reb1 {[%emt 0:00:40]} d4 {[%emt 0:00:00]} 30. Nd1 {[%emt 0:04:53]} (30. Nc4 Bxc4 31. bxc4) 30... Rd2 {[%emt 0:00:00]} 31. Rc1 {[%emt 0:00:26]} b6 {[%emt 0:00:00]} 32. Rc6 {[%emt 0:00:18]} Bc5 {[%emt 0:00:00]} 33. b4 {[%emt 0:00:23]} Bxb4 {[%emt 0:00:00]} 34. Rxb6 {[%emt 0:00:07]} Bf8 {[%emt 0:00:00]} 35. Bf1 {[%emt 0:01:20]} e3 {[%emt 0:00:00] And now ...e2 would win.} 36. fxe3 {[%emt 0:00:42]} dxe3 {[%emt 0:00:00]} 37. Nc3 {[%emt 0:01:33]} e2 {[%emt 0:00:00] White must now prevent ...Bc5+.} 38. Rxe6 {[%emt 0:00:54]} Bc5+ {[%emt 0:01:00]} 39. Kh1 {[%emt 0:00:05]} exf1=Q+ {[%emt 0:04:30]} 40. Rxf1 {[%emt 0:00:07]} fxe6 {[%emt 0:00:30]} 41. Rxf6 {[%emt 0:00:09][%mdl 4096] Endgame KRB-KRN} Bd4 {[%emt 0:00:00]} 42. Rf3 {[%emt 0:00:20]} Bxc3 {[%emt 0:00:00]} 43. Rxc3 {[%emt 0:00:04]} Rxa2 {[%emt 0:00:00] KR-KR} 44. Rc7+ {[%emt 0:00:15]} Kg8 {[%emt 0:00:00] ( -> ...Rb2)} 45. Ra7 {[%emt 0:00:08]} Kf8 {[%emt 0:00:00]} 46. Kg1 {[%emt 0:00:11]} h5 {[%emt 0:00:00]} 47. Kf1 {[%emt 0:00:02]} Ke8 {[%emt 0:00:03]} (47... Ra1+ $142 48. Kg2 a2) 48. h4 {[%emt 0:00:06]} Kd8 {[%emt 0:01:35]} (48... Ra1+ $142 49. Kg2 a2 50. Ra8+ Kd7 51. Ra6 e5 52. Ra4 e4 53. Ra7+ Kc6 54. Ra6+ Kb5 55. Ra8 e3 56. Kf3 Rf1+ 57. Kxe3 a1=Q 58. Rxa1 Rxa1 59. Kf3 Ra3+ 60. Kf4 Kc6 61. Ke5 Rxg3 62. Kf4 Rg4+ 63. Kf3 Rxh4 64. Ke3 g5 65. Ke2 Rf4 66. Kd2 h4 67. Ke3 h3 68. Ke2 h2 69. Kd3 h1=Q 70. Kd2 Rf3 71. Ke2 Qg2+ 72. Ke1 Rf1#) 49. Kg1 {[%emt 0:00:03]} Kc8 {[%emt 0:00:16] Black mates.} 50. Kf1 {[%emt 0:00:07]} Kb8 {[%emt 0:00:35]} 51. Ra6 {[%emt 0:00:11]} Kb7 {[%emt 0:00:07]} 52. Rxe6 {[%emt 0:00:28]} Rb2 {[%emt 0:00:15]} 53. Re7+ {[%emt 0:00:10]} Kc6 {[%emt 0:00:29] Weighted Error Value: White=1.17/Black=0.39} 0-1